Cogmind - Beta 12 @@@ ROGUE MODE // 2024.02.16 @ 03:18:10 Player: %41THX3142 Result: Destroyed by G-47 Trooper with Particle Gun Performance ------------- Evolutions (0) 0 Regions Visited (1) 200 Robots Destroyed (23) 115 Value Destroyed (505) 505 Prototype IDs (0) 0 Alien Tech Used (0) 0 Bonus (0) 0 TOTAL SCORE: 820 Bonus ------- None Cogmind --------- Core Integrity 0/250 Matter 300/300 Energy 100/100 System Corruption 0% Temperature Cool (9) Movement Core (100) Ox1 Location -10/Materials Parts ------- > --- POWER (1) -------- (None) > --- PROPULSION (2) --- (None) > --- UTILITY (2) ------ Small Storage Unit > --- WEAPON (2) ------- (None) > --- INVENTORY (8) ---- Light Ion Engine Light Ion Engine Compact Wheel Weight Redist. System Sensor Array Improved Terrain Scanner Peak State ------------ > --- POWER ------------ Ion Engine > --- PROPULSION ------- Wheel Wheel > --- UTILITY ---------- Small Storage Unit Seismic Detector > --- WEAPON ----------- Assault Rifle Assault Rifle > --- INVENTORY -------- Light Ion Engine Light Ion Engine Wheel Wheel Compact Wheel Improved Terrain Scanner Light Armor Plating Light Assault Rifle [Rating: 8] Favorites ----------- Power Ion Engine Engine Ion Engine Propulsion Hover Unit Wheel Wheel Hover Unit Hover Unit Utility Small Storage Unit Device Seismic Detector Storage Small Storage Unit Protection Light Armor Plating Weapon Assault Rifle Ballistic Gun Assault Rifle Special Weapon Mining Laser Build | -11 -10 ------- Run | Jun Mat Slots Evolved . | . . Power . | . . Propulsion . | . . Utility . | . . Weapon . | . . Parts Attached 19 | 9 10 Power 2 | 1 1 Engine 2 | 1 1 Core . | . . Reactor . | . . Propulsion 7 | 3 4 Treads . | . . Leg . | . . Wheel 3 | 3 . Hover 4 | . 4 Flight . | . . Utility 3 | 2 1 Device 1 | 1 . Storage 1 | 1 . Processor . | . . Hackware . | . . Protection 1 | . 1 Artifact . | . . Weapon 7 | 3 4 Energy Gun . | . . Energy Cannon . | . . Ballistic Gun 5 | 3 2 Ballistic Cannon . | . . Launcher . | . . Special Weapon 2 | . 2 Impact Weapon . | . . Slashing Weapon . | . . Piercing Weapon . | . . Special Melee Weapon . | . . Unidentified Prototypes . | . . Parts Lost 9 | . 9 Power 1 | . 1 Propulsion 3 | . 3 Utility 2 | . 2 Weapon 3 | . 3 Highest Loss Streak 6 | . 6 To Critical Strikes . | . . Average Slot Usage (%) 92 | . 92 Engine 13 | . 13 Wheel 9 | . 9 Hover 13 | . 13 Device 4 | . 4 Storage 14 | . 14 Protection 8 | . 8 Ballistic Gun 25 | . 25 Special Weapon 1 | . 1 Naked Turns . | . . Heaviest Build 17 | 15 17 Greatest Support 26 | 26 20 Greatest Overweight (x) 2 | . 2 Average Overweight (x) . | . . Largest Inventory Capacity 8 | 8 8 Average Capacity 7 | 7 8 Most Carried 8 | 6 8 Average Carried 7 | 2 7 Final Capacity 8 | 8 8 Final Carried 6 | 6 6 Class Distribution -------------------- 100% | Mutant Dominant Class ---------------- Mutant | -10/Materials Resources | -11 -10 ----------- Run | Jun Mat Matter Collected 654 | 261 393 Remotely . | . . Salvage Created 688 | 37 651 Parts 51 | 5 46 Haulers Intercepted 2 | . 2 Recyclers Shooed 2 | . 2 Parts Field Recycled . | . . Retrieved Matter . | . . Parts Self-Destructed . | . . Prevented . | . . Kills | -11 -10 ------- Run | Jun Mat Combat Hostiles Destroyed 14 | . 14 Guns 13 | . 13 Cannons 1 | . 1 Classes Destroyed 7 | 1 6 Tunneler 2 | 2 . Hauler 2 | . 2 Recycler 1 | . 1 Operator 1 | . 1 Watcher 3 | . 3 Swarmer 3 | . 3 Grunt 11 | . 11 Best Kill Streak 3 | 1 3 Combat Bots Only 3 | . 3 Max Kills in Single Turn 2 | 1 2 Gunslinging . | . . Exploded . | . . Melee . | . . Uniques/NPCs Destroyed . | . . Combat | -11 -10 -------- Run | Jun Mat Damage Taken 993 | . 993 Core 257 | . 257 Absorbed by Shields . | . . Regen/Repaired (Parts) 14 | . 14 Core Remaining (%) 100 | 100 . Volleys Fired 76 | 2 74 Largest 2 | 2 2 Hottest 120 | 40 120 Shots Fired 145 | 4 141 Gun 135 | 4 131 Cannon . | . . Launcher . | . . Special 10 | . 10 Kinetic 135 | 4 131 Thermal 10 | . 10 Explosive . | . . Electromagnetic . | . . Robot Hit Streak 12 | 3 12 Robot Miss Streak 4 | 1 4 Penetration Max . | . . Secondary Targets . | . . Shots Hit Robots 88 | 3 85 Core Hits 44 | 2 42 Critical Kills . | . . Critical Parts Destroyed 1 | . 1 Critical Strikes 1 | . 1 Destroy 1 | . 1 Melee Attacks . | . . Impact . | . . Slashing . | . . Piercing . | . . Sneak Attacks . | . . Combat Hostiles . | . . Follow-up Attacks . | . . Damage Inflicted 1203 | 47 1156 Guns 1088 | 47 1041 Cannons . | . . Explosions . | . . Melee . | . . Ramming 19 | . 19 Kinetic 1088 | 47 1041 Thermal 96 | . 96 Explosive . | . . Electromagnetic . | . . Impact . | . . Slashing . | . . Piercing . | . . Highest Corruption . | . . Average Corruption . | . . Corruption Purged . | . . Corruption Blocked . | . . Overload Shots . | . . Overflow Damage . | . . Projectiles . | . . Explosions . | . . Melee . | . . Knockbacks . | . . Impact . | . . Kinetic . | . . Secondary . | . . Self-Inflicted Damage 6 | . 6 Shots . | . . Rammed 10 | . 10 Targets Rammed 10 | . 10 Kicked . | . . Crushed . | . . Highest Temperature 327 | . 327 Average Temperature 86 | . 86 Received Heat Transfer 567 | . 567 Effects 1 | . 1 Energy Bleed 1 | . 1 Siege Activations . | . . Robots Corrupted . | . . Combat Hostiles . | . . Parts Fried . | . . Impact Corruptions . | . . Robots Melted . | . . Combat Hostiles . | . . Parts Melted . | . . Heat Transferred 200 | . 200 Parts Sabotaged . | . . Parts Stolen . | . . Parts Stripped . | . . Power Chain Reactions . | . . Missiles Intercepted . | . . Alert | -11 -10 ------- Run | Jun Mat Peak Influence 201 | 10 201 Initial 6 | . 6 Average 46 | 2 50 Maximum Alert Level 1 | . 1 Low Security (%) 99 | 100 99 Level 1 . | . . Level 2 . | . . Level 3 . | . . Level 4 . | . . Level 5 . | . . High Security . | . . Max Security . | . . Squads Dispatched 4 | . 4 Investigation 2 | . 2 Extermination . | . . Reinforcement 2 | . 2 Assault . | . . Garrison . | . . Intercept . | . . Searches Triggered . | . . Construction Impeded . | . . Haulers Reinforced . | . . Active Scanning Responses . | . . Cargo Convoy Interrupts . | . . Stealth | -11 -10 --------- Run | Jun Mat Distress Signals . | . . Communications Jammed . | . . Distress Signals . | . . Times Spotted 21 | . 21 Peak Tracking Total 4 | . 4 Tactical Retreats . | . . Traps | -11 -10 ------- Run | Jun Mat Traps Triggered . | . . Indirectly . | . . Trap Hack Attempts . | . . Triggered . | . . Disarmed . | . . Reprogrammed . | . . Reused . | . . Traps Extracted . | . . Installed . | . . Triggered . | . . Machines | -11 -10 ---------- Run | Jun Mat Machines Disabled . | . . Max in Single Turn . | . . Machines Repaired . | . . Machines Sabotaged . | . . Overloaded Fab Kills . | . . Hacking | -11 -10 --------- Run | Jun Mat Machines Accessed 4 | . 4 Terminals 2 | . 2 Fabricators . | . . Repair Stations 1 | . 1 Recycling Units 1 | . 1 Scanalyzers . | . . Garrison Access . | . . Total Hacks 12 | . 12 Successful 8 | . 8 Failed 4 | . 4 Catastrophic . | . . Database Lockouts . | . . Manual 3 | . 3 Terminals 3 | . 3 Fabricators . | . . Repair Stations 3 | . 3 Recycling Units 6 | . 6 Scanalyzers . | . . Garrison Access . | . . Terminal Hacks . | . . Fabricator Hacks . | . . Repair Station Hacks 2 | . 2 Scan Component 1 | . 1 Repair 1 | . 1 Recycling Unit Hacks 5 | . 5 Report Inventory 3 | . 3 Retrieve Matter 1 | . 1 Retrieve Components 1 | . 1 Scanalyzer . | . . Garrison Access Hacks . | . . Unauthorized Hacks 1 | . 1 Terminals 1 | . 1 Assimilate 1 | . 1 Fabricators . | . . Repair Stations . | . . Recycling Units . | . . Scanalyzers . | . . Garrison Access . | . . Data Cores Recovered . | . . Used . | . . Hacking Detections 4 | . 4 Full Trace Events 2 | . 2 Feedback Events . | . . Feedback Blocked . | . . Robot Schematics Acquired . | . . Robots Built . | . . Authchips . | . . Time . | . . Total Robot Build Rating . | . . Part Schematics Acquired . | . . Parts Built . | . . Authchips . | . . Time . | . . Total Part Build Rating . | . . Parts Repaired 1 | . 1 Time 26 | . 26 Parts Recycled . | . . Recycled Matter . | . . Retrieved Matter 108 | . 108 Retrieved Components 3 | . 3 Parts Scanalyzed . | . . Part Schematics Acquired . | . . Parts Damaged . | . . Bothacking | -11 -10 ------------ Run | Jun Mat Used RIF Installer . | . . Robots Hacked . | . . Non-combat . | . . Combat . | . . Robot Hacks Applied . | . . Relay Couplers Released . | . . Fabnet Peak Effective % . | . . Robots Rewired . | . . Allies Hacked . | . . Hacks Repelled . | . . Allies | -11 -10 -------- Run | Jun Mat Total Allies . | . . Largest Group . | . . Highest-Rated Group . | . . Highest-Rated Ally . | . . Total Orders . | . . Ally Attacks . | . . Total Damage . | . . Kills . | . . Allies Corrupted . | . . Allies Melted . | . . Intel | -11 -10 ------- Run | Jun Mat Robot Analysis Total . | . . Derelict Logs Recovered . | . . Drone Launches . | . . Drone Recoveries . | . . Exploration | -11 -10 ------------- Run | Jun Mat Turns Passed 1046 | 82 964 Spaces Moved 557 | 68 489 Core 16 | 2 14 Treads . | . . Legs . | . . Wheels 273 | 66 207 Hover 268 | . 268 Flight . | . . Fastest Speed 50 | 50 80 Average Speed 108 | 85 111 Slowest Speed 185 | 100 185 Overloaded Moves . | . . Propulsion Burnouts . | . . Robots Hopped . | . . Cave-ins Triggered . | . . Exploration Rate (%) 33 | 4 62 Regions Visited 1 Branch Regions . Pre-discovered Areas . | . . Known Exits Taken . | . . Unknown Exits Taken 1 | 1 . Scrap Searched . | . . Spaces Dug 1 | . 1 Terrain Destroyed 4 | . 4 Melee . | . . Projectile 4 | . 4 AOE . | . . Terrain Rammed . | . . Walls Destroyed . | . . Machines Disabled . | . . Actions | -11 -10 --------- Run | Jun Mat Total 829 | 82 747 Wait 151 | . 151 Move 556 | 67 489 Hop . | . . Pick Up 10 | 4 6 Fast Attach 10 | 7 3 Attach 3 | . 3 Detach . | . . Swap 6 | 2 4 Drop 7 | . 7 Fire 76 | 2 74 Melee . | . . Ram 10 | . 10 Kick . | . . Crush . | . . Escape Stasis . | . . Rewire . | . . Trap . | . . Miscellaneous . | . . Route ------- -11/Junkyard -10/Materials (discovered 2 exits: [*Mat x2]) History --------- Turn | Location | Event 10 | -11/Junkyard | Discovered new exit (range 15) 83 | -11/Junkyard | Entered Materials 312 | -10/Materials | Build established: Mutant 489 | -10/Materials | Discovered new exit (range 13) 598 | -10/Materials | Repaired Hover Unit 929 | -10/Materials | Discovered new exit (range 8) 995 | -10/Materials | Core integrity fell below 50% 1029 | -10/Materials | Core integrity fell below 20% 1047 | -10/Materials | Destroyed by G-47 Trooper with Particle Gun Last Messages --------------- 01002_ K-01 Serf destroyed. 01004_ Assault Rifle destroyed. 01007_ K-01 Serf collects debris. 01012_ Assault Rifle destroyed. 01014_ K-01 Serf collects debris. 01014_ Lgt. Ion Engine destroyed. 01018_ K-01 Serf collects debris. 01020_ G-47 Trooper destroyed. 01020_ Mining Laser destroyed. 01020_ K-01 Serf collects debris. 01022_ Critical hit (Burn: +37). 01023_ K-01 Serf collects debris. 01026_ U-05 Engineer builds a Wall. 01026_ K-01 Serf collects debris. 01029_ Slammed into G-47 Trooper. 01030_ Acquired 37 matter. 01030_ Slammed into K-01 Serf. 01031_ Slammed into U-05 Engineer. 01033_ Acquired 6 matter. 01035_ Slammed into G-47 Trooper. Map ----- +----------------------------------------------------+ | ????????????????????????????????????? | | ????????????????????????????????????? | | ??????????????????? ???????????????? | | ??????????????????? ???????????????? | | ??????????????????? ???????????????? | | ??????????????????? ???????????????? | | ??????????????????? ???????????????? | | ??????????????????? ???????????????? | | ??????????????????? ???????????????? | | ??????????????????+ ???????????????? | | ??????????????????# #???????????????? | | ??????????????????# #???????????????? | | ??????????????????# #???????????????? | | ??????????????????# #???????????????? | | ??????????????????# #???????????????? | | ??????????????????# #???????????????? | | ??????????????????# #???????????????? | | ??????#########???# #???????????????? | | ??????? #???#%#???????????????? | | ????????< #####+##??????????????? | | ????????? # !* #??????????????? | | ??????????# # #??????????????? | | ??????????# # #??????????????? | | ??????????# #% #??????????????? | | ??????????# %!+%% #??????????????? | | ??????????#%@g#% #??????????????? | | ??????????# k%########???????????#### | | ??????????# *%#############"T" | | ??????????## | | ???????????# ^ | | ???????????# | | ???????????# """"" =! | | ???????????# """""""""% | | ???????????#""" """ """[! | | ???????????#"R ! | | ???????????#""" ! | | ???????????# !% | | ???????????# =% | | ???????????# ##############% | | ???????????# #????????????# | | ???????????# ######????????????# | | ???????????# #???????########### | | ???????????# #???????# """ # | | ???????????# #??###### """ "Y" # | | ?????????### #### # """ % # | | ?????????# # """ !*/ | | ?????????# # """ # | | ??????######+####### # """ [ # < | | ??????# ] #????# ## # | | ??????# ]#????# ## ### | +----------------------------------------------------+ Best States ------------- Heat Dissipation 25 Energy Generation 10 Energy Capacity 250 Matter Stores 300 Matter Capacity 300 Sight Range 16 Terrain Scan Density 10 Armor Coverage 150 Evasion (%) 44 Item Schematics ----------------- None Robot Schematics ------------------ None Fabricated ------------ Nothing Alien Tech Used ----------------- None Achievements -------------- None Challenges ------------ None Game ------ Seed SwarmProcessingCharger Manual? 0 Play Time 00:17:17 Cumulative 43.6 hours Start 2024.02.16 @ 03:05:29 End 2024.02.16 @ 03:18:10 Sessions 1 Manual Loads 0 Difficulty Rogue Special Mode None Game No. 34 Rogue 34 Adventurer 0 Explorer 0 Win Type - Total 0 Types 0/0/0/0/0/0/0/0/0 Lore% 23 Gallery% 30 Achievement% 23 Wizard Run 0 Options --------- ASCII 0 Keyboard 1 Movement Vi Keybinds 0 Fullscreen 1 Font 18/Terminus Map View 76x50 Tactical HUD 1 Map Filters NONE Filters NONE Steam 1 RUN: 78a60d2e-839e-4180-a7d0-543c0db4df62